fUST/lending_fUST_20250913
["ID","MTS","AMOUNT","RATE_DAILY","PERIOD"]
[385320417,1757772664710,-480.0,0.00025753,3]
[385320418,1757772664720,-480.0,0.00025753,3]
[385320419,1757772664729,-482.81032973,0.00025753,3]
[385320420,1757772664739,-480.0,0.00025753,3]
[385320421,1757772664749,-480.0,0.00025753,3]
[385320422,1757772664759,-480.0,0.00025753,3]
[385320423,1757772664768,-480.0,0.00025753,3]
[385320424,1757772664778,-480.0,0.00025753,3]
[385320425,1757772664788,-480.0,0.00025753,3]
[385320426,1757772664797,-480.0,0.00025753,3]
[385320427,1757772664807,-480.0,0.00025753,3]
[385320428,1757772664818,-337.68470721,0.00025753,3]
[385320429,1757772664828,-480.0,0.00025753,3]
[385320430,1757772664838,-480.0,0.00025753,3]
[385320431,1757772664848,-539.07363442,0.00025753,3]
[385320432,1757772664858,-480.0,0.00025753,3]
[385320433,1757772664873,-480.0,0.00025753,3]
[385320434,1757772664888,-655.19,0.00025753,3]
[385320435,1757772664898,-713.36,0.00025753,3]
[385320436,1757772664907,-480.0,0.00025753,3]
[385320437,1757772664917,-480.0,0.00025753,3]
[385320438,1757772664926,-915.0,0.00025753,3]
[385320439,1757772664936,-480.0,0.00025753,3]
[385320440,1757772664946,-480.0,0.00025753,3]
[385320441,1757772664955,-585.7,0.00025753,3]
[385320442,1757772664966,-480.0,0.00025753,3]
[385320443,1757772664975,-480.0,0.00025753,3]
[385320444,1757772664985,-480.0,0.00025753,3]
[385320445,1757772664994,-480.0,0.00025753,3]
[385320446,1757772665004,-480.0,0.00025753,3]
[385320447,1757772665014,-198.42801804,0.00025753,3]
[385320448,1757772665024,-480.0,0.00025753,3]
[385320449,1757772665033,-480.0,0.00025753,3]
[385320450,1757772665044,-480.0,0.00025753,3]
[385320451,1757772665054,-480.0,0.00025753,3]
[385320452,1757772665063,-480.0,0.00025753,3]
[385320453,1757772665073,-480.0,0.00025753,3]
[385320454,1757772665082,-480.0,0.00025753,3]
[385320455,1757772665092,-480.0,0.00025753,3]
[385320456,1757772665101,-1095.71,0.00025753,3]
[385320457,1757772665111,-480.0,0.00025753,3]
[385320458,1757772665120,-480.0,0.00025753,3]
[385320459,1757772665130,-480.0,0.00025753,3]
[385320460,1757772665139,-480.0,0.00025753,3]
[385320461,1757772665148,-480.0,0.00025753,3]
[385320462,1757772665158,-480.0,0.00025753,3]
[385320463,1757772665167,-480.0,0.00025753,3]
[385320464,1757772665178,-480.0,0.00025753,3]
[385320465,1757772665194,-480.0,0.00025753,3]
[385320466,1757772665204,-480.0,0.00025753,3]
[385320467,1757772665339,-480.0,0.00025753,3]
[385320468,1757772665349,-480.0,0.00025753,3]
[385320469,1757772665359,-480.0,0.00025753,3]
[385320470,1757772665368,-480.0,0.00025753,3]
[385320471,1757772665378,-480.0,0.00025753,3]
[385320472,1757772665387,-480.0,0.00025753,3]
[385320473,1757772665397,-480.0,0.00025753,3]
[385320474,1757772665408,-563.27347164,0.00025753,3]
[385320475,1757772665417,-225.08754483,0.00025753,3]
[385320476,1757772665427,-480.0,0.00025753,3]
[385320477,1757772665437,-894.84,0.00025753,3]
[385320478,1757772665446,-480.0,0.00025753,3]
[385320479,1757772665456,-480.0,0.00025753,3]
[385320480,1757772665466,-480.0,0.00025753,3]
[385320481,1757772665475,-492.3,0.00025753,3]
[385320482,1757772665485,-595.46,0.00025753,3]
[385320483,1757772665495,-480.0,0.00025753,3]
[385320484,1757772665505,-480.0,0.00025753,3]
[385320485,1757772665514,-480.0,0.00025753,3]
[385320486,1757772665524,-541.82,0.00025753,3]
[385320487,1757772665534,-480.0,0.00025753,3]
[385320488,1757772665544,-480.0,0.00025753,3]
[385320489,1757772665553,-480.0,0.00025753,3]
[385320490,1757772665563,-480.0,0.00025753,3]
[385320491,1757772665573,-480.0,0.00025753,3]
[385320492,1757772665583,-480.0,0.00025753,3]
[385320493,1757772665593,-480.0,0.00025753,3]
[385320494,1757772665603,-480.0,0.00025753,3]
[385320495,1757772665612,-480.0,0.00025753,3]
[385320496,1757772665622,-480.0,0.00025753,3]
[385320497,1757772665633,-525.88840495,0.00025753,3]
[385320498,1757772665659,-497.02,0.00025753,3]
[385320499,1757772665670,-971.84,0.00025753,3]
[385320500,1757772665680,-480.0,0.00025753,3]
[385320501,1757772665690,-643.99,0.00025753,3]
[385320502,1757772665700,-1029.53,0.00025753,3]
[385320503,1757772665710,-480.0,0.00025753,3]
[385320504,1757772665720,-480.0,0.00025753,3]
[385320505,1757772665729,-665.6,0.00025753,3]
[385320506,1757772665739,-480.0,0.00025753,3]
[385320507,1757772665749,-480.0,0.00025753,3]
[385320508,1757772665759,-340.32006446,0.00025753,3]
[385320509,1757772665769,-480.0,0.00025753,3]
[385320510,1757772665779,-480.0,0.00025753,3]
[385320511,1757772665789,-480.0,0.00025753,3]
[385320512,1757772665798,-480.0,0.00025753,3]
[385320513,1757772665808,-480.0,0.00025753,3]
[385320514,1757772665817,-480.0,0.00025753,3]
[385320515,1757772665827,-480.0,0.00025753,3]
[385320516,1757772665837,-480.0,0.00025753,3]
[385320517,1757772665846,-480.0,0.00025753,3]
[385320518,1757772665856,-480.0,0.00025753,3]
[385320519,1757772665867,-480.0,0.00025753,3]
[385320520,1757772665879,-480.0,0.00025753,3]
[385320521,1757772665888,-480.0,0.00025753,3]
[385320522,1757772665898,-480.0,0.00025753,3]
[385320523,1757772665911,-480.0,0.00025753,3]
[385320524,1757772665921,-480.0,0.00025753,3]
[385320525,1757772665931,-562.6295598,0.00025753,3]
[385320526,1757772665941,-480.0,0.00025753,3]
[385320527,1757772665951,-480.0,0.00025753,3]
[385320528,1757772665962,-480.0,0.00025753,3]
[385320529,1757772665971,-480.0,0.00025753,3]
[385320530,1757772665981,-480.0,0.00025753,3]
[385320531,1757772665991,-480.0,0.00025753,3]
[385320532,1757772666001,-480.0,0.00025753,3]
[385320533,1757772666012,-480.0,0.00025753,3]
[385320534,1757772666021,-425.2403921,0.00025753,3]
[385320535,1757772666031,-494.79338197,0.00025753,3]
[385320536,1757772666041,-480.0,0.00025753,3]
[385320537,1757772666052,-480.0,0.00025753,3]
[385320538,1757772666062,-480.0,0.00025753,3]
[385320539,1757772666071,-480.0,0.00025753,3]
[385320540,1757772666081,-480.0,0.00025753,3]
[385320541,1757772666090,-480.0,0.00025753,3]
[385320542,1757772666099,-480.0,0.00025753,3]
[385320543,1757772666108,-480.0,0.00025753,3]
[385320544,1757772666118,-1538.15,0.00025753,3]
[385320545,1757772666127,-480.0,0.00025753,3]
[385320546,1757772666137,-480.0,0.00025753,3]
[385320547,1757772666147,-480.0,0.00025753,3]
[385320548,1757772666159,-941.16,0.00025753,3]
[385320549,1757772666168,-480.0,0.00025753,3]
[385320550,1757772666178,-480.0,0.00025753,3]
[385320551,1757772666187,-1497.15,0.00025753,3]
[385320552,1757772666197,-480.0,0.00025753,3]
[385320553,1757772666206,-480.0,0.00025753,3]
[385320554,1757772666215,-410.15168586,0.00025753,3]
[385320555,1757772666225,-1004.89,0.00025753,3]
[385320556,1757772666235,-480.0,0.00025753,3]
[385320557,1757772666245,-480.0,0.00025753,3]
[385320558,1757772666254,-1875.61,0.00025753,3]
[385320559,1757772666264,-480.0,0.00025753,3]
[385320560,1757772666274,-3440.41,0.00025753,3]
[385320561,1757772666284,-250.5802531,0.00025753,3]
[385320562,1757772666294,-1286.07,0.00025753,3]
[385320563,1757772666303,-480.0,0.00025753,3]
[385320564,1757772666313,-480.0,0.00025753,3]
[385320565,1757772666323,-480.0,0.00025753,3]
[385320566,1757772666332,-480.0,0.00025753,3]
[385320567,1757772666342,-3389.09,0.00025753,3]
[385320568,1757772666351,-480.0,0.00025753,3]
[385320569,1757772666361,-5654.65,0.00025753,3]
[385320570,1757772666371,-480.0,0.00025753,3]
[385320571,1757772666380,-607.93,0.00025753,3]
[385320572,1757772666391,-560.18008552,0.00025753,3]
[385320573,1757772666401,-657.02,0.00025753,3]
[385320574,1757772666410,-480.0,0.00025753,3]
[385320575,1757772666420,-480.0,0.00025753,3]
[385320576,1757772666430,-480.0,0.00025753,3]
[385320577,1757772666440,-480.0,0.00025753,3]
[385320578,1757772666451,-490.05300746,0.00025753,3]
[385320579,1757772666460,-480.0,0.00025753,3]
[385320580,1757772666471,-480.0,0.00025753,3]
[385320581,1757772666480,-480.0,0.00025753,3]
[385320582,1757772666490,-480.0,0.00025753,3]
[385320583,1757772666499,-3914.17,0.00025753,3]
[385320584,1757772666509,-309.55170501,0.00025753,3]
[385320585,1757772666519,-480.0,0.00025753,3]
[385320586,1757772666529,-480.0,0.00025753,3]
[385320587,1757772666539,-2994.64,0.00025753,3]
[385320588,1757772666548,-732.67,0.00025753,3]
[385320589,1757772666558,-480.0,0.00025753,3]
[385320590,1757772666567,-480.0,0.00025753,3]
[385320591,1757772666577,-480.0,0.00025753,3]
[385320592,1757772666586,-1472.11,0.00025753,3]
[385320593,1757772666595,-480.0,0.00025753,3]
[385320594,1757772666604,-916.17,0.00025753,3]
[385320595,1757772666614,-480.0,0.00025753,3]
[385320596,1757772666623,-519.59,0.00025753,3]
[385320597,1757772666633,-480.0,0.00025753,3]
[385320598,1757772666644,-480.0,0.00025753,3]
[385320599,1757772666654,-733.88,0.00025753,3]
[385320600,1757772666665,-480.0,0.00025753,3]
[385320601,1757772666674,-602.1,0.00025753,3]
[385320602,1757772666684,-480.0,0.00025753,3]
[385320603,1757772666697,-480.0,0.00025753,3]
[385320604,1757772666706,-480.0,0.00025753,3]
[385320605,1757772666716,-295.87444808,0.00025753,3]
[385320606,1757772666725,-480.0,0.00025753,3]
[385320607,1757772666738,-480.0,0.00025753,3]
[385320608,1757772666747,-480.0,0.00025753,3]
[385320609,1757772666757,-888.61,0.00025753,3]
[385320610,1757772666766,-1859.15,0.00025753,3]
[385320611,1757772666776,-2798.37,0.00025753,3]
[385320612,1757772666785,-636.55,0.00025753,3]
[385320613,1757772666794,-994.12,0.00025753,3]
[385320614,1757772666803,-480.0,0.00025753,3]
[385320615,1757772666813,-480.0,0.00025753,3]
[385320616,1757772666823,-480.0,0.00025753,3]
[385320617,1757772666832,-480.0,0.00025753,3]
[385320618,1757772666842,-198.22304024,0.00025753,3]
[385320619,1757772666852,-501.46860692,0.00025753,3]
[385320620,1757772666862,-480.0,0.00025753,3]
[385320621,1757772666876,-11213.25,0.00025753,3]
[385320622,1757772666885,-480.0,0.00025753,3]
[385320623,1757772666895,-2143.2,0.00025753,3]
[385320624,1757772666904,-886.26,0.00025753,3]
[385320625,1757772666914,-480.0,0.00025753,3]
[385320626,1757772666924,-480.0,0.00025753,3]
[385320627,1757772666933,-480.0,0.00025753,3]
[385320628,1757772666943,-808.42,0.00025753,3]
[385320629,1757772666953,-600.34,0.00025753,3]
[385320630,1757772666963,-480.0,0.00025753,3]
[385320631,1757772666973,-1512.47,0.00025753,3]
[385320632,1757772666983,-480.0,0.00025753,3]
[385320633,1757772666993,-729.19,0.00025753,3]
[385320634,1757772667003,-480.0,0.00025753,3]
[385320635,1757772667013,-480.0,0.00025753,3]
[385320636,1757772667024,-480.0,0.00025753,3]
[385320637,1757772667034,-503.07,0.00025753,3]
[385320638,1757772667044,-480.0,0.00025753,3]
[385320639,1757772667055,-480.0,0.00025753,3]
[385320640,1757772667066,-1757.83,0.00025753,3]
[385320641,1757772667077,-480.0,0.00025753,3]
[385320642,1757772667087,-797.3,0.00025753,3]
[385320643,1757772667097,-735.55,0.00025753,3]
[385320644,1757772667107,-480.0,0.00025753,3]
[385320645,1757772667117,-480.0,0.00025753,3]
[385320646,1757772667127,-480.0,0.00025753,3]
[385320647,1757772667138,-480.0,0.00025753,3]
[385320648,1757772667148,-648.69,0.00025753,3]
[385320649,1757772667160,-1620.71,0.00025753,3]
[385320650,1757772667170,-480.0,0.00025753,3]
[385320651,1757772667180,-880.28,0.00025753,3]
[385320652,1757772667192,-1045.65,0.00025753,3]
[385320653,1757772667203,-480.0,0.00025753,3]
[385320654,1757772667213,-480.0,0.00025753,3]
[385320655,1757772667224,-437.24367892,0.00025753,3]
[385320656,1757772667234,-714.06,0.00025753,3]
[385320657,1757772667244,-625.77,0.00025753,3]
[385320658,1757772667254,-480.0,0.00025753,3]
[385320659,1757772667264,-8505.93,0.00025753,3]
[385320660,1757772667274,-645.28,0.00025753,3]
[385320661,1757772667284,-2218.69,0.00025753,3]
[385320662,1757772667294,-480.0,0.00025753,3]
[385320663,1757772667304,-603.77,0.00025753,3]
[385320664,1757772667314,-480.0,0.00025753,3]
[385320665,1757772667325,-480.0,0.00025753,3]
[385320666,1757772667335,-480.0,0.00025753,3]
[385320667,1757772667344,-480.0,0.00025753,3]
[385320668,1757772667354,-480.0,0.00025753,3]
[385320669,1757772667364,-503.25,0.00025753,3]
[385320670,1757772667373,-480.0,0.00025753,3]
[385320671,1757772667383,-839.61,0.00025753,3]
[385320672,1757772667393,-480.0,0.00025753,3]
[385320673,1757772667404,-480.0,0.00025753,3]
[385320674,1757772667413,-480.0,0.00025753,3]
[385320675,1757772667422,-480.0,0.00025753,3]
[385320676,1757772667431,-480.0,0.00025753,3]
[385320677,1757772667440,-480.0,0.00025753,3]
[385320678,1757772667450,-2006.74,0.00025753,3]
[385320679,1757772667459,-480.0,0.00025753,3]
[385320680,1757772667469,-480.0,0.00025753,3]
[385320681,1757772667478,-480.0,0.00025753,3]
[385320682,1757772667487,-1488.92,0.00025753,3]
[385320683,1757772667497,-480.0,0.00025753,3]
[385320684,1757772667506,-480.0,0.00025753,3]
[385320685,1757772667516,-480.0,0.00025753,3]
[385320686,1757772667526,-500.0,0.00025754,2]
[385320687,1757772667536,-1500.0,0.00025768,2]
[385320688,1757772667546,-300.0,0.00025821,2]
[385320689,1757772667557,-360.0,0.00025832,2]
[385320690,1757772667567,-190.16417979,0.00025894,2]
[385320691,1757772667578,-1500.0,0.00025968,2]
[385320692,1757772667588,-500.0,0.00025998,3]
[385320693,1757772667598,-1613.0,0.00026,7]
[385320694,1757772667609,-556.14,0.00026,7]
[385320695,1757772667619,-31954.7,0.00026,7]
[385320696,1757772667629,-2417.02,0.00026017,3]
[385320697,1757772667639,-471.0,0.00026026,2]
[385320698,1757772667649,-500.0,0.00026027,3]
[385320699,1757772667660,-480.0,0.00026027,3]
[385320700,1757772667671,-480.0,0.00026027,3]
[385320701,1757772667681,-480.0,0.00026027,3]
[385320702,1757772667691,-480.0,0.00026027,3]
[385320703,1757772667702,-480.0,0.00026027,3]
[385320704,1757772667713,-480.0,0.00026027,3]
[385320705,1757772667723,-480.0,0.00026027,3]
[385320706,1757772667733,-480.0,0.00026027,3]
[385320707,1757772667743,-480.0,0.00026027,3]
[385320708,1757772667754,-480.0,0.00026027,3]
[385320709,1757772667764,-480.0,0.00026027,3]
[385320710,1757772667775,-480.0,0.00026027,3]
[385320711,1757772667784,-614.94940642,0.00026027,3]
[385320712,1757772667794,-480.0,0.00026027,3]
[385320713,1757772667805,-480.0,0.00026027,3]
[385320714,1757772667815,-655.19,0.00026027,3]
[385320715,1757772667826,-713.36,0.00026027,3]
[385320716,1757772667836,-480.0,0.00026027,3]
[385320717,1757772667846,-480.0,0.00026027,3]
[385320718,1757772667856,-915.0,0.00026027,3]
[385320719,1757772667866,-480.0,0.00026027,3]
[385320720,1757772667880,-585.7,0.00026027,3]
[385320721,1757772667890,-480.0,0.00026027,3]
[385320722,1757772667900,-622.92299327,0.00026027,3]
[385320723,1757772667911,-558.67,0.00026027,3]
[385320724,1757772667922,-480.0,0.00026027,3]
[385320725,1757772667932,-480.0,0.00026027,3]
[385320726,1757772667942,-480.0,0.00026027,3]
[385320727,1757772667955,-480.0,0.00026027,3]
[385320728,1757772667965,-480.0,0.00026027,3]
[385320729,1757772667976,-480.0,0.00026027,3]
[385320730,1757772667986,-480.0,0.00026027,3]
[385320731,1757772667996,-480.0,0.00026027,3]
[385320732,1757772668006,-480.0,0.00026027,3]
[385320733,1757772668016,-480.0,0.00026027,3]
[385320734,1757772668026,-1095.71,0.00026027,3]
[385320735,1757772668036,-480.0,0.00026027,3]
[385320736,1757772668046,-480.0,0.00026027,3]
[385320737,1757772668058,-480.0,0.00026027,3]
[385320738,1757772668068,-480.0,0.00026027,3]
[385320739,1757772668079,-480.0,0.00026027,3]
[385320740,1757772668089,-480.0,0.00026027,3]
[385320741,1757772668099,-480.0,0.00026027,3]
[385320742,1757772668109,-480.0,0.00026027,3]
[385320743,1757772668119,-480.0,0.00026027,3]
[385320744,1757772668129,-480.0,0.00026027,3]
[385320745,1757772668139,-480.0,0.00026027,3]
[385320746,1757772668267,-480.0,0.00026027,3]
[385320747,1757772668278,-480.0,0.00026027,3]
[385320748,1757772668287,-480.0,0.00026027,3]
[385320749,1757772668298,-480.0,0.00026027,3]
[385320750,1757772668308,-480.0,0.00026027,3]
[385320751,1757772668319,-480.0,0.00026027,3]
[385320752,1757772668329,-480.0,0.00026027,3]
[385320753,1757772668339,-894.84,0.00026027,3]
[385320754,1757772668350,-480.0,0.00026027,3]
[385320755,1757772668360,-480.0,0.00026027,3]
[385320756,1757772668370,-480.0,0.00026027,3]
[385320757,1757772668380,-492.3,0.00026027,3]
[385320758,1757772668390,-595.46,0.00026027,3]
[385320759,1757772668400,-480.0,0.00026027,3]
[385320760,1757772668410,-480.0,0.00026027,3]
[385320761,1757772668420,-480.0,0.00026027,3]
[385320762,1757772668430,-541.82,0.00026027,3]
[385320763,1757772668440,-273.80453058,0.00026027,3]
[385320764,1757772668449,-480.0,0.00026027,3]
[385320765,1757772668460,-480.0,0.00026027,3]
[385320766,1757772668471,-480.0,0.00026027,3]
[385320767,1757772668481,-480.0,0.00026027,3]
[385320768,1757772668491,-480.0,0.00026027,3]
[385320769,1757772668501,-480.0,0.00026027,3]
[385320770,1757772668512,-480.0,0.00026027,3]
[385320771,1757772668522,-480.0,0.00026027,3]
[385320772,1757772668532,-480.0,0.00026027,3]
[385320773,1757772668542,-497.02,0.00026027,3]
[385320774,1757772668552,-971.84,0.00026027,3]
[385320775,1757772668562,-480.0,0.00026027,3]
[385320776,1757772668572,-643.99,0.00026027,3]
[385320777,1757772668583,-1029.53,0.00026027,3]
[385320778,1757772668593,-480.0,0.00026027,3]
[385320779,1757772668604,-480.0,0.00026027,3]
[385320780,1757772668614,-665.6,0.00026027,3]
[385320781,1757772668624,-480.0,0.00026027,3]
[385320782,1757772668634,-480.0,0.00026027,3]
[385320783,1757772668644,-480.0,0.00026027,3]
[385320784,1757772668654,-480.0,0.00026027,3]
[385320785,1757772668664,-574.71225045,0.00026027,3]
[385320786,1757772668674,-480.0,0.00026027,3]
[385320787,1757772668685,-480.0,0.00026027,3]
[385320788,1757772668695,-480.0,0.00026027,3]
[385320789,1757772668706,-480.0,0.00026027,3]
[385320790,1757772668716,-480.0,0.00026027,3]
[385320791,1757772668726,-485.37655359,0.00026027,3]
[385320792,1757772668736,-480.0,0.00026027,3]
[385320793,1757772668746,-480.0,0.00026027,3]
[385320794,1757772668756,-480.0,0.00026027,3]
[385320795,1757772668767,-480.0,0.00026027,3]
[385320796,1757772668777,-480.0,0.00026027,3]
[385320797,1757772668788,-480.0,0.00026027,3]
[385320798,1757772668799,-480.0,0.00026027,3]
[385320799,1757772668809,-480.0,0.00026027,3]
[385320800,1757772668819,-480.0,0.00026027,3]
[385320801,1757772668830,-480.0,0.00026027,3]
[385320802,1757772668841,-415.15724759,0.00026027,3]
[385320803,1757772668851,-480.0,0.00026027,3]
[385320804,1757772668861,-480.0,0.00026027,3]
[385320805,1757772668877,-480.0,0.00026027,3]
[385320806,1757772668888,-480.0,0.00026027,3]
[385320807,1757772668899,-480.0,0.00026027,3]
[385320808,1757772668910,-480.0,0.00026027,3]
[385320809,1757772668921,-480.0,0.00026027,3]
[385320810,1757772668931,-480.0,0.00026027,3]
[385320811,1757772668941,-480.0,0.00026027,3]
[385320812,1757772668952,-480.0,0.00026027,3]
[385320813,1757772668963,-480.0,0.00026027,3]
[385320814,1757772668973,-1538.15,0.00026027,3]
[385320815,1757772668984,-480.0,0.00026027,3]
[385320816,1757772668994,-480.0,0.00026027,3]
[385320817,1757772669004,-480.0,0.00026027,3]
[385320818,1757772669013,-941.16,0.00026027,3]
[385320819,1757772669023,-480.0,0.00026027,3]
[385320820,1757772669034,-480.0,0.00026027,3]
[385320821,1757772669044,-1497.15,0.00026027,3]
[385320822,1757772669054,-480.0,0.00026027,3]
[385320823,1757772669063,-480.0,0.00026027,3]
[385320824,1757772669073,-1004.89,0.00026027,3]
[385320825,1757772669083,-480.0,0.00026027,3]
[385320826,1757772669092,-480.0,0.00026027,3]
[385320827,1757772669102,-1875.61,0.00026027,3]
[385320828,1757772669111,-480.0,0.00026027,3]
[385320829,1757772669121,-3440.41,0.00026027,3]
[385320830,1757772669130,-1286.07,0.00026027,3]
[385320831,1757772669139,-480.0,0.00026027,3]
[385320832,1757772669149,-480.0,0.00026027,3]
[385320833,1757772669160,-480.0,0.00026027,3]
[385320834,1757772669169,-480.0,0.00026027,3]
[385320835,1757772669179,-3389.09,0.00026027,3]
[385320836,1757772669189,-5654.65,0.00026027,3]
[385320837,1757772669199,-480.0,0.00026027,3]
[385320838,1757772669208,-480.0,0.00026027,3]
[385320839,1757772669219,-607.93,0.00026027,3]
[385320840,1757772669229,-657.02,0.00026027,3]
[385320841,1757772669238,-480.0,0.00026027,3]
[385320842,1757772669248,-480.0,0.00026027,3]
[385320843,1757772669257,-480.0,0.00026027,3]
[385320844,1757772669267,-480.0,0.00026027,3]
[385320845,1757772669276,-480.0,0.00026027,3]
[385320846,1757772669286,-480.0,0.00026027,3]
[385320847,1757772669295,-480.0,0.00026027,3]
[385320848,1757772669305,-480.0,0.00026027,3]
[385320849,1757772669315,-3914.17,0.00026027,3]
[385320850,1757772669324,-480.0,0.00026027,3]
[385320851,1757772669333,-480.0,0.00026027,3]
[385320852,1757772669343,-2994.64,0.00026027,3]
[385320853,1757772669352,-732.67,0.00026027,3]
[385320854,1757772669361,-480.0,0.00026027,3]
[385320855,1757772669371,-480.0,0.00026027,3]
[385320856,1757772669380,-488.59332235,0.00026027,3]
[385320857,1757772669390,-1472.11,0.00026027,3]
[385320858,1757772669399,-480.0,0.00026027,3]
[385320859,1757772669410,-916.17,0.00026027,3]
[385320860,1757772669420,-480.0,0.00026027,3]
[385320861,1757772669429,-519.59,0.00026027,3]
[385320862,1757772669439,-480.0,0.00026027,3]
[385320863,1757772669448,-480.0,0.00026027,3]
[385320864,1757772669458,-733.88,0.00026027,3]
[385320865,1757772669467,-359.26949437,0.00026027,3]
[385320866,1757772669478,-602.1,0.00026027,3]
[385320867,1757772669488,-480.0,0.00026027,3]
[385320868,1757772669497,-480.0,0.00026027,3]
[385320869,1757772669506,-551.99553795,0.00026027,3]
[385320870,1757772669516,-480.0,0.00026027,3]
[385320871,1757772669525,-480.0,0.00026027,3]
[385320872,1757772669535,-888.61,0.00026027,3]
[385320873,1757772669544,-480.0,0.00026027,3]
[385320874,1757772669554,-1859.15,0.00026027,3]
[385320875,1757772669564,-2798.37,0.00026027,3]
[385320876,1757772669573,-636.55,0.00026027,3]
[385320877,1757772669583,-994.12,0.00026027,3]
[385320878,1757772669593,-480.0,0.00026027,3]
[385320879,1757772669603,-480.0,0.00026027,3]
[385320880,1757772669612,-480.0,0.00026027,3]
[385320881,1757772669622,-480.0,0.00026027,3]
[385320882,1757772669631,-11213.25,0.00026027,3]
[385320883,1757772669641,-480.0,0.00026027,3]
[385320884,1757772669651,-2143.2,0.00026027,3]
[385320885,1757772669661,-886.26,0.00026027,3]
[385320886,1757772669671,-480.0,0.00026027,3]
[385320887,1757772669680,-480.0,0.00026027,3]
[385320888,1757772669689,-480.0,0.00026027,3]
[385320889,1757772669699,-808.42,0.00026027,3]
[385320890,1757772669709,-600.34,0.00026027,3]
[385320891,1757772669719,-480.0,0.00026027,3]
[385320892,1757772669728,-1512.47,0.00026027,3]
[385320893,1757772669738,-480.0,0.00026027,3]
[385320894,1757772669748,-729.19,0.00026027,3]
[385320895,1757772669758,-480.0,0.00026027,3]
[385320896,1757772669768,-485.50177255,0.00026027,3]
[385320897,1757772669777,-480.0,0.00026027,3]
[385320898,1757772669787,-503.07,0.00026027,3]
[385320899,1757772669796,-480.0,0.00026027,3]
[385320900,1757772669806,-480.0,0.00026027,3]
[385320901,1757772669816,-1757.83,0.00026027,3]
[385320902,1757772669826,-797.3,0.00026027,3]
[385320903,1757772669835,-480.0,0.00026027,3]
[385320904,1757772669844,-735.55,0.00026027,3]
[385320905,1757772669854,-480.0,0.00026027,3]
[385320906,1757772669864,-480.0,0.00026027,3]
[385320907,1757772669874,-480.0,0.00026027,3]
[385320908,1757772669887,-480.0,0.00026027,3]
[385320909,1757772669897,-648.69,0.00026027,3]
[385320910,1757772669908,-1620.71,0.00026027,3]
[385320911,1757772669919,-480.0,0.00026027,3]
[385320912,1757772669928,-880.28,0.00026027,3]
[385320913,1757772669938,-1045.65,0.00026027,3]
[385320914,1757772669948,-583.66282137,0.00026027,3]
[385320915,1757772669958,-480.0,0.00026027,3]
[385320916,1757772669968,-714.06,0.00026027,3]